Cogmind - Beta 16.1 @@@ ROGUE MODE // 2026.02.18 @ 19:28:45 Player: Ceorik Result: Destroyed by S-27 Virus with Autogun Performance ------------- Evolutions (5) 2500 Regions Visited (4) 800 Robots Destroyed (6) 30 Value Destroyed (323) 323 Prototype IDs (11) 220 Alien Tech Used (0) 0 Bonus (800) 800 TOTAL SCORE: 4673 Bonus ------- Registered with UFD 300 Met Optimus in HQ 500 Cogmind --------- Core Integrity 0/1000 Matter 270/300 Energy 69/100 System Corruption 5% Temperature Cool (0) Movement Core (200) Ox3 Location -5/Factory Parts ------- > --- POWER (2) -------- (None) > --- PROPULSION (4) --- (None) > --- UTILITY (8) ------ Enhanced Optical Array > --- WEAPON (3) ------- Companion Sword Ionic Axe Ionic Axe > --- INVENTORY (5) ---- DRS Beacon (Ready) Peak State ------------ > --- POWER ------------ Light Deuterium Engine Light Fission Core > --- PROPULSION ------- Flexi-carbon Leg Enhanced Flexi-carbon Leg Enhanced Flexi-carbon Leg Enhanced Flexi-carbon Leg > --- UTILITY ---------- Small Storage Unit Enhanced Optical Array Transmission Jammer Hacking Suite > --- WEAPON ----------- Gauss Rifle Remote Datajack Companion Sword > --- INVENTORY -------- Light Fission Core Airjet DRS Beacon [Rating: 62] Favorites ----------- Power Light Ion Engine Engine Light Ion Engine Power Core Light Fission Core Reactor Graviton Reactor Propulsion Aluminum Leg Leg Aluminum Leg Hover Unit Cooled Airjet Utility Small Storage Unit Device Structural Scanner Storage Small Storage Unit Processor Enhanced Optical Array Hackware Hacking Suite Protection Improved Power Shielding Weapon Companion Sword Energy Gun Small Laser Energy Cannon Disruptor Cannon Ballistic Gun Assault Rifle Launcher Grenade Launcher Special Weapon Remote Datajack Slashing Weapon Companion Sword Build | -11 -10 -10 -7 -5 ------- Run | Yrd Mat Sub Scr Fac Slots Evolved 10 | . . . . 10 Power 1 | . . . . 1 Propulsion 2 | . . . . 2 Utility 6 | . . . . 6 Weapon 1 | . . . . 1 Parts Attached 42 | 6 2 . 10 24 Power 7 | 1 . . 3 3 Engine 4 | 1 . . 2 1 Core 2 | . . . . 2 Reactor 1 | . . . 1 . Propulsion 14 | 2 . . 5 7 Treads . | . . . . . Leg 12 | 2 . . 5 5 Wheel . | . . . . . Hover 2 | . . . . 2 Flight . | . . . . . Utility 11 | 1 2 . . 8 Device 6 | . 2 . . 4 Storage 1 | 1 . . . . Processor 1 | . . . . 1 Hackware 2 | . . . . 2 Protection 1 | . . . . 1 Artifact . | . . . . . Weapon 10 | 2 . . 2 6 Energy Gun 2 | 1 . . . 1 Energy Cannon . | . . . . . Ballistic Gun 2 | 1 . . . 1 Ballistic Cannon . | . . . . . Launcher 1 | . . . 1 . Special Weapon 1 | . . . . 1 Impact Weapon . | . . . . . Slashing Weapon 4 | . . . 1 3 Piercing Weapon . | . . . . . Special Melee Weapon . | . . . . . Unidentified Prototypes 5 | . . . 2 3 Parts Lost 28 | . . . 3 25 Power 5 | . . . 1 4 Propulsion 10 | . . . 1 9 Utility 8 | . . . . 8 Weapon 5 | . . . 1 4 Highest Loss Streak 9 | . . . 2 9 To Critical Strikes . | . . . . . Average Backups 4 | . 1 4 5 2 Power . | . . 1 1 . Propulsion . | . . . . 1 Utility . | . . . . . Weapon 3 | . 1 3 4 . Tool/Special . | . . . . . Unused Backups 4 | . . . 3 1 Power 1 | . . . 1 . Propulsion . | . . . . . Utility 1 | . . . . 1 Weapon 2 | . . . 2 . Tool/Special . | . . . . . Average Slot Usage (%) 73 | . 97 100 73 62 Engine 11 | . 14 14 12 7 Reactor 1 | . . . 1 . Leg 23 | . 28 28 27 11 Device 13 | . 11 14 14 14 Storage 11 | . 14 14 14 4 Energy Gun 1 | . 14 14 . 1 Ballistic Gun 1 | . 14 14 . . Slashing Weapon 3 | . . . 2 7 Peak Build Rating 62 | 6 7 7 25 62 Average Rating 16 | 4 6 7 7 47 On Entrance 8 | . 6 7 7 20 Avg Prop Armor Cover (%) . | . . . . . Naked Turns . | . . . . . Heaviest Build 40 | 11 12 12 28 40 Greatest Support 104 | 20 20 20 38 104 Greatest Overweight (x) 8 | . . . 8 7 Average Overweight (x) . | . . . . . Largest Inventory Capacity 8 | 8 8 8 8 8 Average Capacity 7 | 7 8 8 8 7 Most Carried 8 | 2 4 4 8 7 Average Carried 5 | . 2 4 6 3 Final Capacity 8 | 8 8 8 8 5 Final Carried 8 | . 4 4 8 1 Scrap Suit Usage (%) 17 | . . . . 75 Parts Cannibalized 4 | . . . . 4 Class Distribution -------------------- 80% | Mutant 18% | Scavenger-Mutant Dominant Class ---------------- Mutant | -10/Materials Mutant | -10/Subcaves Mutant | -7/Scraptown Scavenger-Mutant | -5/Factory Resources | -11 -10 -10 -7 -5 ----------- Run | Yrd Mat Sub Scr Fac Matter Collected 509 | 215 . 36 143 115 Remotely . | . . . . . Salvage Created 380 | . . 36 . 344 Parts 23 | . . 3 . 20 Haulers Intercepted 1 | . . . . 1 Recyclers Shooed . | . . . . . Parts Field Recycled . | . . . . . Retrieved Matter . | . . . . . Parts Self-Destructed . | . . . . . Prevented . | . . . . . Parts Restored . | . . . . . Kills | -11 -10 -10 -7 -5 ------- Run | Yrd Mat Sub Scr Fac Combat Hostiles Destroyed 5 | . . 1 . 4 Melee 3 | . . . . 3 Guns 2 | . . 1 . 1 Classes Destroyed 4 | . . 1 . 3 Hauler 1 | . . . . 1 Hunter 3 | . . . . 3 Programmer 1 | . . . . 1 Subdweller 1 | . . 1 . . Best Kill Streak 2 | . . 1 . 2 Combat Bots Only 2 | . . 1 . 2 Max Kills in Single Turn 1 | . . 1 . 1 Gunslinging . | . . . . . Exploded . | . . . . . Melee 1 | . . . . 1 Uniques/NPCs Destroyed . | . . . . . Combat | -11 -10 -10 -7 -5 -------- Run | Yrd Mat Sub Scr Fac Hostile Shots Fired 313 | . . 4 32 277 Missed 109 | . . 1 8 100 Hits 204 | . . 3 24 177 Melee 2 | . . . 2 . Projectile 202 | . . 3 22 177 AOE 1 | . . . . 1 Critical Strikes 11 | . . . 1 10 Damage Taken 4384 | . . 61 539 3784 Core 1062 | . . . 57 1005 Absorbed by Shields . | . . . . . Redirected to Shielding 110 | . . . . 110 Regen/Repaired (Parts) 22 | . . . . 22 Core Remaining (%) 88 | 100 . . 77 . Volleys Fired 7 | . . 3 . 4 Largest 2 | . . 2 . 1 Hottest 60 | . . 60 . 55 Shots Fired 10 | . . 6 . 4 Gun 7 | . . 6 . 1 Cannon . | . . . . . Launcher . | . . . . . Special 3 | . . . . 3 Kinetic 3 | . . 3 . . Thermal 3 | . . 3 . . Explosive . | . . . . . Electromagnetic 1 | . . . . 1 Robot Hit Streak 10 | . . 6 . 10 Robot Miss Streak . | . . . . . Penetration Max . | . . . . . Secondary Targets . | . . . . . Shots Hit Robots 39 | . . 6 5 28 Core Hits 10 | . . 3 . 7 Critical Kills . | . . . . . Critical Parts Destroyed . | . . . . . Critical Strikes . | . . . . . Melee Attacks 47 | . . . 10 37 Impact . | . . . . . Slashing 47 | . . . 10 37 Piercing . | . . . . . Sneak Attacks 1 | . . . . 1 Combat Hostiles . | . . . . . Follow-up Attacks . | . . . . . Damage Inflicted 1322 | . . 68 201 1053 Guns 90 | . . 68 . 22 Cannons . | . . . . . Explosions . | . . . . . Melee 1232 | . . . 201 1031 Ramming . | . . . . . Kinetic 36 | . . 36 . . Thermal 32 | . . 32 . . Explosive . | . . . . . Electromagnetic 22 | . . . . 22 Impact . | . . . . . Slashing 1232 | . . . 201 1031 Piercing . | . . . . . Highest Corruption 5 | . . . . 5 Average Corruption 2 | . . . . 2 Corruption Purged . | . . . . . Corruption Blocked . | . . . . . Effects 2 | . . . . 2 Message Errors 1 | . . . . 1 Data Loss (major) 1 | . . . . 1 Overload Shots . | . . . . . Overflow Damage 126 | . . . 35 91 Projectiles . | . . . . . Explosions . | . . . . . Melee 126 | . . . 35 91 Knockbacks . | . . . . . Impact . | . . . . . Kinetic . | . . . . . Secondary . | . . . . . Self-Inflicted Damage . | . . . . . Shots . | . . . . . Rammed . | . . . . . Targets Rammed . | . . . . . Kicked . | . . . . . Crushed . | . . . . . Highest Temperature 4 | . . . . 4 Average Temperature 3 | . . . . 3 Received Heat Transfer 729 | . . 18 216 495 Siege Activations . | . . . . . Martial Activations . | . . . . . Shielding Activations . | . . . . . Robots Disrupted . | . . . . . Combat Hostiles . | . . . . . Robots Corrupted . | . . . . . Combat Hostiles . | . . . . . Parts Fried . | . . . . . Impact Corruptions . | . . . . . Robots Melted . | . . . . . Combat Hostiles . | . . . . . Parts Melted 2 | . . 2 . . Heat Transferred 75 | . . 75 . . Parts Sabotaged . | . . . . . Parts Stolen . | . . . . . Parts Stripped . | . . . . . Power Chain Reactions . | . . . . . Alert | -11 -10 -10 -7 -5 ------- Run | Yrd Mat Sub Scr Fac Maximum Alert Level . | . . . . . Low Security (%) 100 | 100 100 . . 100 Level 1 . | . . . . . Level 2 . | . . . . . Level 3 . | . . . . . Level 4 . | . . . . . Level 5 . | . . . . . High Security . | . . . . . Max Security . | . . . . . Peak Influence 40 | . 7 . . 40 Initial . | . . . . . Average 4 | . 1 . . 5 Influence Increases 159 | . 7 . . 152 Destroy 0b10 Robot/C 80 | . . . . 80 Destroy 0b10 Robot/NC 5 | . . . . 5 Destroy Leader 32 | . . . . 32 Successful Hack 17 | . 7 . . 10 Destroy Structure 10 | . . . . 10 Partial Spotted 15 | . . . . 15 Influence Decreases 159 | . 7 . . 152 Time Decay 112 | . 7 . . 105 Lost Part 47 | . . . . 47 Squads Dispatched 3 | . 1 . . 2 Investigation 1 | . . . . 1 Extermination 1 | . . . . 1 Reinforcement 1 | . 1 . . . Assault . | . . . . . Garrison . | . . . . . Intercept . | . . . . . Searches Triggered . | . . . . . Construction Impeded . | . . . . . Haulers Reinforced . | . . . . . Active Scanning Responses . | . . . . . Cargo Convoy Interrupts . | . . . . . Stealth | -11 -10 -10 -7 -5 --------- Run | Yrd Mat Sub Scr Fac Distress Signals . | . . . . . Communications Jammed 1 | . . . . 1 Distress Signals 1 | . . . . 1 Times Spotted 34 | . 1 1 13 19 Peak Tracking Total 12 | . 1 1 4 12 Tactical Retreats 1 | . . . 1 . Traps | -11 -10 -10 -7 -5 ------- Run | Yrd Mat Sub Scr Fac Traps Triggered 3 | . . . . 3 Indirectly . | . . . . . Trap Hack Attempts . | . . . . . Triggered . | . . . . . Disarmed . | . . . . . Reprogrammed . | . . . . . Reused . | . . . . . Traps Extracted . | . . . . . Installed . | . . . . . Triggered . | . . . . . Machines | -11 -10 -10 -7 -5 ---------- Run | Yrd Mat Sub Scr Fac Machines Disabled . | . . . . . Max in Single Turn . | . . . . . Garrison Access 1 | . . . . 1 Machines Repaired . | . . . . . Machines Dismantled . | . . . . . Machines Sabotaged . | . . . . . Overloaded Fab Kills . | . . . . . Hacking | -11 -10 -10 -7 -5 --------- Run | Yrd Mat Sub Scr Fac Machines Accessed 14 | . 1 . 10 3 Terminals 3 | . 1 . . 2 Fabricators . | . . . . . Repair Stations . | . . . . . Recycling Units . | . . . . . Scanalyzers . | . . . . . Garrison Access 1 | . . . . 1 Total Hacks 66 | . 2 . 59 5 Successful 62 | . 1 . 59 2 Failed 4 | . 1 . . 3 Catastrophic 2 | . . . . 2 Database Lockouts . | . . . . . Manual 1 | . . . . 1 Terminals 6 | . 2 . . 4 Fabricators . | . . . . . Repair Stations . | . . . . . Recycling Units . | . . . . . Scanalyzers . | . . . . . Garrison Access 1 | . . . . 1 Terminal Hacks 61 | . 1 . 59 1 Record 58 | . . . 57 1 Open Door 1 | . . . 1 . Surveillance Status 1 | . 1 . . . Proto ID Catalog 1 | . . . 1 . Fabricator Hacks . | . . . . . Repair Station Hacks . | . . . . . Recycling Unit Hacks . | . . . . . Scanalyzer . | . . . . . Garrison Access Hacks 1 | . . . . 1 Seal Access 1 | . . . . 1 Unauthorized Hacks . | . . . . . Terminals . | . . . . . Fabricators . | . . . . . Repair Stations . | . . . . . Recycling Units . | . . . . . Scanalyzers . | . . . . . Garrison Access . | . . . . . Data Cores Recovered . | . . . . . Used . | . . . . . Hacking Detections 2 | . . . . 2 Full Trace Events 1 | . . . . 1 Feedback Events . | . . . . . Feedback Blocked . | . . . . . Robot Schematics Acquired . | . . . . . Robots Built . | . . . . . Authchips . | . . . . . Time . | . . . . . Total Robot Build Rating . | . . . . . Part Schematics Acquired . | . . . . . Parts Built . | . . . . . Authchips . | . . . . . Time . | . . . . . Total Part Build Rating . | . . . . . Part Studies Acquired . | . . . . . Parts Repaired . | . . . . . Time . | . . . . . Parts Recycled . | . . . . . Recycled Matter . | . . . . . Retrieved Matter . | . . . . . Retrieved Components . | . . . . . Parts Scanalyzed . | . . . . . Part Schematics Acquired . | . . . . . Parts Damaged . | . . . . . Bothacking | -11 -10 -10 -7 -5 ------------ Run | Yrd Mat Sub Scr Fac Used RIF Installer . | . . . . . Robots Hacked . | . . . . . Non-combat . | . . . . . Combat . | . . . . . Robot Hacks Applied . | . . . . . Relay Couplers Released . | . . . . . Fabnet Peak Effective % . | . . . . . Robots Rewired . | . . . . . Allies Hacked . | . . . . . Hacks Repelled . | . . . . . Allies | -11 -10 -10 -7 -5 -------- Run | Yrd Mat Sub Scr Fac Total Allies . | . . . . . Largest Group . | . . . . . Highest-Rated Group . | . . . . . Highest-Rated Ally . | . . . . . Initial UFD Resources 39 | . . . . 39 Total Orders . | . . . . . Ally Attacks . | . . . . . Total Damage . | . . . . . Kills . | . . . . . Allies Corrupted . | . . . . . Allies Melted 5 | . . . 5 . Intel | -11 -10 -10 -7 -5 ------- Run | Yrd Mat Sub Scr Fac Active Infowar (turns) 3285 | . 96 228 2192 769 Optics 619 | . . . . 619 Terrain 21 | . 21 . . . Structural 2864 | . 75 228 2192 369 Jamming 440 | . . . . 440 Robot Analysis Total . | . . . . . Derelict Logs Recovered . | . . . . . Drone Launches . | . . . . . Drone Recoveries . | . . . . . Exploration | -11 -10 -10 -7 -5 ------------- Run | Yrd Mat Sub Scr Fac Turns Passed 3362 | 58 115 228 2192 769 Spaces Moved 2347 | 42 84 179 1663 379 Core 17 | 5 . . 3 9 Treads . | . . . . . Legs 2309 | 37 84 179 1660 349 Wheels . | . . . . . Hover 21 | . . . . 21 Flight . | . . . . . Fastest Speed 50 | 50 120 120 100 51 Average Speed 126 | 111 120 120 123 149 Slowest Speed 450 | 120 120 120 450 400 Overloaded Moves . | . . . . . Propulsion Burnouts . | . . . . . Robots Hopped . | . . . . . Potential Cave-ins . | . . . . . Cave-ins Triggered . | . . . . . Exploration Rate (%) 26 | 3 13 19 85 12 Regions Visited 4 Branch Regions 2 Pre-discovered Areas 2 | . . . 2 . Known Exits Taken 1 | . . . 1 . Unknown Exits Taken 3 | 1 1 1 . . Scrap Searched . | . . . . . Spaces Dug 5 | . . . . 5 Terrain Destroyed 5 | . . . . 5 Melee 5 | . . . . 5 Projectile . | . . . . . AOE . | . . . . . Terrain Rammed . | . . . . . Walls Destroyed . | . . . . . Machines Disabled . | . . . . . Actions | -11 -10 -10 -7 -5 --------- Run | Yrd Mat Sub Scr Fac Total 2655 | 53 98 186 1793 525 Wait 150 | . 6 5 82 57 Move 2343 | 41 83 178 1662 379 Hop . | . . . . . Pick Up 46 | 6 6 . 15 19 Fast Attach . | . . . . . Attach 37 | 6 2 . 7 22 Detach 2 | . . . 2 . Swap 8 | . . . 5 3 Drop 16 | . 1 . 10 5 Fire 7 | . . 3 . 4 Melee 46 | . . . 10 36 Ram . | . . . . . Kick . | . . . . . Crush . | . . . . . Escape Stasis . | . . . . . Rewire . | . . . . . Trap . | . . . . . Miscellaneous . | . . . . . Route ------- -11/Scrapyard -10/Materials -10/Subcaves -7/Scraptown (discovered 2 exits: *Fac x2) -5/Factory History --------- Turn | Location | Event 11 | -11/Scrapyard | Discovered new exit (range 15) 59 | -11/Scrapyard | Entered Materials 147 | -10/Materials | Discovered new exit (range 16) 174 | -10/Materials | Entered Subcaves 175 | -10/Subcaves | Approached by a straggling Scientist 310 | -10/Subcaves | Build established: Mutant 402 | -10/Subcaves | Entered Scraptown 588 | -7/Scraptown | Visited Bundlers 664 | -7/Scraptown | Visited UFD Registry 664 | -7/Scraptown | Registered with UFD as "Metamind" 685 | -7/Scraptown | Visited Cyclists 706 | -7/Scraptown | Entered Cyclist Reading Room 710 | -7/Scraptown | Learned location of Zion (-6) 739 | -7/Scraptown | Visited Science Testing Area 762 | -7/Scraptown | Heard Great Nut preacher, LISTEN AND RECITE! 818 | -7/Scraptown | Discovered new exit (range 11) 1216 | -7/Scraptown | Visited Cartography Club 1510 | -7/Scraptown | Visited LU-1G1's Boring Crew 1578 | -7/Scraptown | Visited Chapter 10 1612 | -7/Scraptown | Visited Derelict Rescue Squad 1626 | -7/Scraptown | Found DRS Beacon 1649 | -7/Scraptown | Visited Observation Area 1708 | -7/Scraptown | Visited DA-N13 Charitable Foundation 1735 | -7/Scraptown | Visited Science Guys 1927 | -7/Scraptown | Visited Research Penetration Think Tank 1954 | -7/Scraptown | Visited Scrap Suit Storage 1999 | -7/Scraptown | Visited Sword Containment 2084 | -7/Scraptown | Met Optimus 2084 | -7/Scraptown | Accepted into 0bPrime 2212 | -7/Scraptown | Found Prototype Slashing Weapon 2213 | -7/Scraptown | Identified Companion Sword 2247 | -7/Scraptown | Found Scrap Suit 2260 | -7/Scraptown | Civil war broke out across Scraptown 2334 | -7/Scraptown | Lost 5 allies 2334 | -7/Scraptown | Identified exit to Factory 2543 | -7/Scraptown | Lost 6 allies 2594 | -7/Scraptown | Entered Factory 2594 | -5/Factory | Evolved 10 slots: Power x1, Propulsion x2, Utility x6, Weapon x1 2900 | -5/Factory | Build established: Scavenger-Mutant 2998 | -5/Factory | Lost 7 parts (1p2n3u1w) 3230 | -5/Factory | Lost 4 parts (1n2u1w) 3307 | -5/Factory | Lost 5 parts (2p1n1u1w) 3332 | -5/Factory | Core integrity fell below 50% 3345 | -5/Factory | Core integrity fell below 20% 3363 | -5/Factory | Destroyed by S-27 Virus with Autogun Last Messages --------------- 03351_ Airjet destroyed. 03351_ U-05 Engineer lays Concrete. 03351_ K-01 Serf collects debris. 03352_ U-05 Engineer lays Concrete. 03355_ Triggered Proton Bomb Trap. 03355_ A bubble of electromagnetic force engulfs the area. 03355_ Door malfunctions. 03355_ Proton Bomb Trap short circuited. 03355_ U-05 Engineer destroyed. 03355_ Door malfunctions. 03355_ A bubble of electromagnetic force engulfs the area. 03355_ Proton Bomb Trap short circuited. 03355_ A bubble of electromagnetic force engulfs the area. 03355_ K-01 Serf collects debris. 03361_ P-70 Sage resets K-01 Serf, system corruption cleaned. 03361_ Cld. Airjet destroyed. Map ----- +----------------------------------------------------+ | ?????????????????????????????????????????????????? | | ?????????????????????????????????????????????????? | | ?????????????????????????????????????????????????? | | ????????????????????#????????????????????????????? | | ???????????????? ?? ????????????????????????????? | | ???????????????? ? ????????????????????????????? | | ????????????????? T ????????????????????????????? | | ????????????????? "" ????????????????????????????? | | ????????????????? ????????????????????????????? | | ????????????????? ????????????????????????????? | | ?????????????????! ????????????????????????????? | | ?????????????????# ????????????????????????????? | | ?????????????????# #???????????????????????????? | | ?????????????????/ +???????????????????????????? | | ?????????????????# #???????????????????????????? | | ?????????????????# #???????????????????????????? | | ?????????????????# #???????????????????????????? | | ?????????????????# #???????????????????????????? | | ????????#????????# #???????????????????????????? | | ????????# ??????# ###############?????????????? | | ????????# ????# =# """ #?????????????? | | ????????# ??# !%# ""R" """ #?????????????? | | ????????# # !# "" " """ #?????????????? | | ????????# / s """ #?????????????? | | ????????# ! # #ss #?????????????? | | ????????#????????# # s @ #?????????????? | | ?????????????????# ###+#;#########?????????????? | | ?????????????????# #?# ###?????????????????????? | | ???????####??????# #?# #???????????????????????? | | ???????# ????# #?# #???????????????????????? | | ???????# !! ??# ### ##??????????????????????? | | ???????# !! # #######????????????????? | | ??????# =! + #????????????????? | | ???????# # ### #????????????????? | | ???????# "" "" ??## #????????????????????? | | ???????# ""S"?????# #????????????????????? | | ???????# ""???????# #????????????????????? | | ?????????########?# #????????????????????? | | ?????#####"""T"""## #????????????????????? | | ???? #????????????????????? | | ???? %#????????????????????? | | ???? *!! " #################????? | | ????? """ """ * *!! ?? | | ????? """ """ " % !!! ?? | | ?" + """ """"%" ?? | | ???# ?? | | ???????"" """ ??? | | ???????"" """ ##############??? | | ???????"" """ ####### #"""""#?????????? | | ?????? # # #""T""##""T"????? | +----------------------------------------------------+ Best States ------------- Heat Dissipation 40 Energy Generation 29 Energy Capacity 350 Matter Stores 300 Matter Capacity 300 Sight Range 22 Terrain Scan Range 14 Terrain Scan Density 10 Jamming Range 12 Power Shielding 66 Phase Shifting 5 Evasion (%) 60 Offensive Hacking 10 Defensive Hacking 10 Item Schematics ----------------- None Robot Schematics ------------------ None Fabricated ------------ Nothing Repaired ---------- Nothing Studied --------- None Alien Tech Used ----------------- None Achievements -------------- Bob, First Of His Name Civilization 2243 Link The Feds Throw Away The Key Uncivil War Challenges ------------ None Game ------ Seed AlphaCountertargetingLance Manual? 0 Play Time 01:06:30 Cumulative 9.7 hours Start 2026.02.18 @ 17:04:33 End 2026.02.18 @ 19:28:45 Sessions 3 Manual Loads 0 Difficulty Rogue Special Mode None Game No. 13 Rogue 13 Adventurer 0 Explorer 0 Win Type - Total 0 Types 0/0/0/0/0/0/0/0/0/0 Lore% 16 Gallery% 18 Achievement% 14 Wizard Run 0 Options --------- Layout 1 ASCII 0 Keyboard 0 Movement Mouse Keybinds 0 Fullscreen 1 Font 24/Swanston Map View 50x35 Zoom Use 0% Tactical HUD 1 Map Filters NONE Filters NONE Steam 1 RUN: ae2170d2-ef75-423c-9e73-91fdf42068d0